[Event "*** SCC Grand Prix: Titled Tuesday Blitz"]
[Site "Chess.com"]
[Date "2020.07.21"]
[Round "2"]
[White "WPWPWP-2015"]
[Black "chessbia"]
[Result "1-0"]
[WhiteElo "2427"]
[BlackElo "2182"]
[TimeControl "180+1"]
[EndTime "10:17:57 PDT"]
[Termination "WPWPWP-2015 won by resignation"]

1. e4 {[%clk 0:03:00.9]} 1... c5 {[%clk 0:02:59.8]} 2. Nc3 {[%clk 0:02:52.8]}
2... d6 {[%clk 0:02:59.9]} 3. Nge2 {[%clk 0:02:50.4]} 3... Nf6 {[%clk
0:02:54.8]} 4. d4 {[%clk 0:02:48.5]} 4... cxd4 {[%clk 0:02:54.2]} 5. Nxd4 {[%clk
0:02:49.4]} 5... a6 {[%clk 0:02:54.6]} 6. Be3 {[%clk 0:02:45.6]} 6... e5 {[%clk
0:02:53.7]} 7. Nb3 {[%clk 0:02:45.2]} 7... Be6 {[%clk 0:02:49.5]} 8. f3 {[%clk
0:02:45]} 8... Nbd7 {[%clk 0:02:47.6]} 9. Qd2 {[%clk 0:02:44.9]} 9... h5 {[%clk
0:02:46.1]} 10. O-O-O {[%clk 0:02:44.2]} 10... Be7 {[%clk 0:02:46.5]} 11. Nd5
{[%clk 0:02:44.4]} 11... Bxd5 {[%clk 0:02:45]} 12. exd5 {[%clk 0:02:45.3]} 12...
b5 {[%clk 0:02:45.6]} 13. Na5 {[%clk 0:02:40]} 13... O-O {[%clk 0:02:31.3]} 14.
Nc6 {[%clk 0:02:36.8]} 14... Qe8 {[%clk 0:02:31.5]} 15. Rg1 {[%clk 0:02:10.8]}
15... Nh7 {[%clk 0:02:16.4]} 16. g4 {[%clk 0:02:07.8]} 16... hxg4 {[%clk
0:02:12.6]} 17. fxg4 {[%clk 0:02:03.1]} 17... Bh4 {[%clk 0:02:09.4]} 18. g5
{[%clk 0:02:00.3]} 18... f5 {[%clk 0:01:52.1]} 19. gxf6 {[%clk 0:01:57.3]} 19...
Ndxf6 {[%clk 0:01:41.3]} 20. Bh3 {[%clk 0:01:55.7]} 20... Kh8 {[%clk 0:01:27.4]}
21. Qg2 {[%clk 0:01:38.1]} 21... Rf7 {[%clk 0:01:18.4]} 22. Be6 {[%clk
0:01:34.9]} 22... Rb7 {[%clk 0:01:02.4]} 23. Qh3 {[%clk 0:01:30.9]} 23... Qh5
{[%clk 0:00:53.4]} 24. Rdf1 {[%clk 0:01:11.3]} 24... Rf8 {[%clk 0:00:46]} 25.
Rf5 {[%clk 0:01:08.5]} 25... Qe2 {[%clk 0:00:32.6]} 26. Bd2 {[%clk 0:00:40.7]}
26... Bf2 {[%clk 0:00:18.7]} 27. Rf1 {[%clk 0:00:13.7]} 27... Bd4 {[%clk
0:00:15.5]} 28. Nxd4 {[%clk 0:00:06.9]} 28... exd4 {[%clk 0:00:16.4]} 29. Qd3
{[%clk 0:00:05.2]} 29... Qxd3 {[%clk 0:00:16.1]} 30. cxd3 {[%clk 0:00:05.6]}
30... Rc7+ {[%clk 0:00:17]} 31. Kd1 {[%clk 0:00:05.6]} 31... Rd8 {[%clk
0:00:16.7]} 32. h4 {[%clk 0:00:05.3]} 32... Rc5 {[%clk 0:00:16.1]} 33. h5 {[%clk
0:00:05.5]} 33... Rc7 {[%clk 0:00:14.7]} 34. h6 {[%clk 0:00:05.8]} 34... a5
{[%clk 0:00:14.7]} 35. hxg7+ {[%clk 0:00:05.4]} 35... Kxg7 {[%clk 0:00:15.4]}
36. Rg1+ {[%clk 0:00:04.9]} 36... Kf8 {[%clk 0:00:15.5]} 37. Bh6+ {[%clk
0:00:04.4]} 37... Ke7 {[%clk 0:00:15.7]} 38. Rg7+ {[%clk 0:00:04]} 38... Ke8
{[%clk 0:00:16.3]} 39. Rg6 {[%clk 0:00:03.8]} 39... Re7 {[%clk 0:00:16.3]} 40.
Bg7 {[%clk 0:00:02.7]} 40... Rxg7 {[%clk 0:00:16.3]} 41. Rxg7 {[%clk 0:00:03]}
41... Kf8 {[%clk 0:00:14.5]} 42. Rg6 {[%clk 0:00:03.2]} 42... Re8 {[%clk
0:00:14.6]} 43. Rgxf6+ {[%clk 0:00:02.8]} 43... Nxf6 {[%clk 0:00:14.9]} 44.
Rxf6+ {[%clk 0:00:03.7]} 44... Ke7 {[%clk 0:00:15.5]} 45. Rf7+ {[%clk
0:00:03.9]} 45... Kd8 {[%clk 0:00:15.7]} 46. Rd7+ {[%clk 0:00:04.5]} 46... Kc8
{[%clk 0:00:16.3]} 47. Re7+ {[%clk 0:00:04.6]} 1-0

[Event "*** SCC Grand Prix: Titled Tuesday Blitz"]
[Site "Chess.com"]
[Date "2020.07.21"]
[Round "2"]
[White "WildTricks"]
[Black "VitaliyBernadskiy"]
[Result "1-0"]
[WhiteElo "2516"]
[BlackElo "2725"]
[TimeControl "180+1"]
[EndTime "10:18:04 PDT"]
[Termination "WildTricks won by resignation"]

1. Nf3 {[%clk 0:03:00.9]} 1... c5 {[%clk 0:02:58.8]} 2. e4 {[%clk 0:03:00.2]}
2... Nc6 {[%clk 0:02:58.8]} 3. Bb5 {[%clk 0:02:59.3]} 3... g6 {[%clk 0:02:57]}
4. Bxc6 {[%clk 0:02:59.3]} 4... dxc6 {[%clk 0:02:56.9]} 5. O-O {[%clk
0:02:59.8]} 5... Bg7 {[%clk 0:02:56.2]} 6. d3 {[%clk 0:03:00.4]} 6... b6 {[%clk
0:02:55.7]} 7. Nc3 {[%clk 0:03:00.6]} 7... Nh6 {[%clk 0:02:54.9]} 8. Be3 {[%clk
0:02:54.5]} 8... Ng4 {[%clk 0:02:48.8]} 9. Bf4 {[%clk 0:02:53.1]} 9... e5 {[%clk
0:02:46.5]} 10. Bd2 {[%clk 0:02:52.9]} 10... f6 {[%clk 0:02:38.8]} 11. Qc1
{[%clk 0:02:49.2]} 11... h5 {[%clk 0:02:27.4]} 12. h3 {[%clk 0:02:35.5]} 12...
Nh6 {[%clk 0:02:22]} 13. a3 {[%clk 0:02:24.8]} 13... a5 {[%clk 0:01:56.3]} 14.
Nh4 {[%clk 0:01:57.9]} 14... g5 {[%clk 0:01:55.4]} 15. Nf3 {[%clk 0:01:26.9]}
15... g4 {[%clk 0:01:49.7]} 16. Nh4 {[%clk 0:01:13.3]} 16... gxh3 {[%clk
0:01:48]} 17. g3 {[%clk 0:01:14.2]} 17... Ng4 {[%clk 0:01:42.8]} 18. f3 {[%clk
0:00:50.3]} 18... Nh6 {[%clk 0:01:36.1]} 19. Kh2 {[%clk 0:00:45.1]} 19... Be6
{[%clk 0:01:34.4]} 20. Ne2 {[%clk 0:00:35.2]} 20... Nf7 {[%clk 0:01:29.4]} 21.
b4 {[%clk 0:00:34.2]} 21... axb4 {[%clk 0:01:20.6]} 22. axb4 {[%clk 0:00:35.1]}
22... Rxa1 {[%clk 0:01:20.2]} 23. Qxa1 {[%clk 0:00:36]} 23... c4 {[%clk
0:01:20.9]} 24. d4 {[%clk 0:00:32.6]} 24... c3 {[%clk 0:00:57.8]} 25. Bxc3
{[%clk 0:00:29.7]} 25... Bc4 {[%clk 0:00:57.5]} 26. Rf2 {[%clk 0:00:29]} 26...
O-O {[%clk 0:00:48.9]} 27. Nf5 {[%clk 0:00:21.3]} 27... Ng5 {[%clk 0:00:49.1]}
28. Ng1 {[%clk 0:00:18.2]} 28... exd4 {[%clk 0:00:41.6]} 29. Bxd4 {[%clk
0:00:17.9]} 29... Qc7 {[%clk 0:00:36.7]} 30. Nxh3 {[%clk 0:00:16.1]} 30... Ne6
{[%clk 0:00:35.2]} 31. Bc3 {[%clk 0:00:14.5]} 31... Rd8 {[%clk 0:00:32.6]} 32.
Bxf6 {[%clk 0:00:11.7]} 32... Rf8 {[%clk 0:00:18.1]} 33. Bxg7 {[%clk 0:00:11.1]}
33... Nxg7 {[%clk 0:00:19]} 34. Nxg7 {[%clk 0:00:06.5]} 34... Qxg7 {[%clk
0:00:19.9]} 35. Qxg7+ {[%clk 0:00:06.8]} 35... Kxg7 {[%clk 0:00:20.8]} 36. Nf4
{[%clk 0:00:07.3]} 36... h4 {[%clk 0:00:21.1]} 37. Nh5+ {[%clk 0:00:06.4]} 37...
Kg6 {[%clk 0:00:20.9]} 38. g4 {[%clk 0:00:07.3]} 38... Kg5 {[%clk 0:00:21.2]}
39. Kh3 {[%clk 0:00:07.6]} 39... Bf7 {[%clk 0:00:18.9]} 40. f4+ {[%clk
0:00:07.9]} 40... Kh6 {[%clk 0:00:18]} 41. Kxh4 {[%clk 0:00:08]} 41... Re8
{[%clk 0:00:17.8]} 42. e5 {[%clk 0:00:07.8]} 42... Rh8 {[%clk 0:00:14]} 43. g5+
{[%clk 0:00:07.4]} 43... Kg6 {[%clk 0:00:07.1]} 44. f5+ {[%clk 0:00:06.3]} 1-0

[Event "*** SCC Grand Prix: Titled Tuesday Blitz"]
[Site "Chess.com"]
[Date "2020.07.21"]
[Round "2"]
[White "nrvisakh"]
[Black "Yashasd1995"]
[Result "1-0"]
[WhiteElo "2834"]
[BlackElo "2552"]
[TimeControl "180+1"]
[EndTime "10:18:05 PDT"]
[Termination "nrvisakh won by resignation"]

1. e4 {[%clk 0:03:00.9]} 1... d5 {[%clk 0:02:59.4]} 2. exd5 {[%clk 0:03:00.3]}
2... Nf6 {[%clk 0:02:59.9]} 3. d4 {[%clk 0:02:56.7]} 3... Nxd5 {[%clk
0:02:58.7]} 4. Nf3 {[%clk 0:02:54.8]} 4... g6 {[%clk 0:02:58.6]} 5. h4 {[%clk
0:02:50.8]} 5... h6 {[%clk 0:02:45.4]} 6. c4 {[%clk 0:02:43.3]} 6... Nb6 {[%clk
0:02:44.3]} 7. Nc3 {[%clk 0:02:43.6]} 7... Bg7 {[%clk 0:02:42.1]} 8. Be3 {[%clk
0:02:43.2]} 8... Bg4 {[%clk 0:02:40]} 9. Be2 {[%clk 0:02:42.1]} 9... Nc6 {[%clk
0:02:39.8]} 10. d5 {[%clk 0:02:38.7]} 10... Bxf3 {[%clk 0:02:38.8]} 11. gxf3
{[%clk 0:02:37.4]} 11... Na5 {[%clk 0:02:04.3]} 12. h5 {[%clk 0:02:33.9]} 12...
g5 {[%clk 0:01:59.9]} 13. f4 {[%clk 0:02:31.3]} 13... Kf8 {[%clk 0:01:42.4]} 14.
fxg5 {[%clk 0:02:25.7]} 14... Naxc4 {[%clk 0:01:36.4]} 15. gxh6 {[%clk
0:02:22.9]} 15... Be5 {[%clk 0:01:17]} 16. Bd4 {[%clk 0:02:14.2]} 16... Qd6
{[%clk 0:01:09.7]} 17. h7 {[%clk 0:02:00.6]} 17... Nxb2 {[%clk 0:01:02.7]} 18.
Qd2 {[%clk 0:01:46.7]} 18... N6c4 {[%clk 0:00:48.8]} 19. Bxc4 {[%clk 0:00:47.6]}
19... Nxc4 {[%clk 0:00:47.9]} 20. Qd3 {[%clk 0:00:47.9]} 20... Bxd4 {[%clk
0:00:27.1]} 21. Qxd4 {[%clk 0:00:48.8]} 21... Qe5+ {[%clk 0:00:27.3]} 22. Qxe5
{[%clk 0:00:48.6]} 22... Nxe5 {[%clk 0:00:28.2]} 23. Rb1 {[%clk 0:00:47.8]}
23... b6 {[%clk 0:00:23.7]} 24. Ke2 {[%clk 0:00:47.9]} 24... a5 {[%clk
0:00:19.8]} 25. Nb5 {[%clk 0:00:47.8]} 25... c5 {[%clk 0:00:17.1]} 26. Na3
{[%clk 0:00:30.4]} 26... Rb8 {[%clk 0:00:15.1]} 27. f4 {[%clk 0:00:23.5]} 27...
Nd7 {[%clk 0:00:15.2]} 28. Nc4 {[%clk 0:00:23.6]} 28... Rxh7 {[%clk 0:00:15.7]}
29. Kf3 {[%clk 0:00:23]} 29... Rh6 {[%clk 0:00:15.9]} 30. a4 {[%clk 0:00:22.2]}
30... Rc8 {[%clk 0:00:13.6]} 31. Rbe1 {[%clk 0:00:19.5]} 31... e6 {[%clk
0:00:11.3]} 32. dxe6 {[%clk 0:00:16.6]} 32... fxe6 {[%clk 0:00:12.2]} 33. Rd1
{[%clk 0:00:16.7]} 33... Ke7 {[%clk 0:00:12.6]} 34. Rxd7+ {[%clk 0:00:16.6]}
34... Kxd7 {[%clk 0:00:12.2]} 35. Nxb6+ {[%clk 0:00:17.5]} 35... Kc7 {[%clk
0:00:12.9]} 36. Nxc8 {[%clk 0:00:18.4]} 36... Kxc8 {[%clk 0:00:13.8]} 37. Kg4
{[%clk 0:00:18.9]} 37... Kd7 {[%clk 0:00:11.7]} 38. Kg5 {[%clk 0:00:19.2]} 38...
Rh8 {[%clk 0:00:12.4]} 39. h6 {[%clk 0:00:19.4]} 39... Ke7 {[%clk 0:00:11.6]}
40. Kg6 {[%clk 0:00:19.4]} 40... Rg8+ {[%clk 0:00:11.5]} 41. Kh5 {[%clk
0:00:18.4]} 41... Kf6 {[%clk 0:00:10.5]} 42. h7 {[%clk 0:00:16]} 42... Rc8
{[%clk 0:00:08.2]} 43. Rg1 {[%clk 0:00:15.7]} 43... Kf7 {[%clk 0:00:03.1]} 44.
Kh6 {[%clk 0:00:15.9]} 44... c4 {[%clk 0:00:03.5]} 45. Rg7+ {[%clk 0:00:15.9]}
45... Kf6 {[%clk 0:00:02.5]} 46. Rg8 {[%clk 0:00:16.2]} 1-0

[Event "*** SCC Grand Prix: Titled Tuesday Blitz"]
[Site "Chess.com"]
[Date "2020.07.21"]
[Round "2"]
[White "MashaFromRussia"]
[Black "winniethepooh04"]
[Result "1-0"]
[WhiteElo "2412"]
[BlackElo "2140"]
[TimeControl "180+1"]
[EndTime "10:18:07 PDT"]
[Termination "MashaFromRussia won on time"]

1. d4 {[%clk 0:03:00.9]} 1... Nf6 {[%clk 0:01:48.3]} 2. c4 {[%clk 0:03:00]} 2...
e6 {[%clk 0:01:48.1]} 3. g3 {[%clk 0:02:59.8]} 3... c5 {[%clk 0:01:46.1]} 4. d5
{[%clk 0:02:59.4]} 4... exd5 {[%clk 0:01:45.9]} 5. cxd5 {[%clk 0:03:00.3]} 5...
d6 {[%clk 0:01:46.8]} 6. Nc3 {[%clk 0:03:00.1]} 6... g6 {[%clk 0:01:47.2]} 7.
Nf3 {[%clk 0:03:00.2]} 7... Bg7 {[%clk 0:01:47.5]} 8. Bg2 {[%clk 0:03:00.6]}
8... O-O {[%clk 0:01:47.5]} 9. O-O {[%clk 0:03:01.1]} 9... a6 {[%clk 0:01:47.8]}
10. a4 {[%clk 0:03:00.8]} 10... Bg4 {[%clk 0:01:45.8]} 11. h3 {[%clk 0:02:59.1]}
11... Bxf3 {[%clk 0:01:45.2]} 12. Bxf3 {[%clk 0:03:00]} 12... Nbd7 {[%clk
0:01:44.3]} 13. e4 {[%clk 0:02:58.8]} 13... Ne5 {[%clk 0:01:44.5]} 14. Bg2
{[%clk 0:02:58.8]} 14... c4 {[%clk 0:01:43.5]} 15. Be3 {[%clk 0:02:50]} 15...
Rc8 {[%clk 0:01:41.6]} 16. a5 {[%clk 0:02:44.2]} 16... Nd3 {[%clk 0:01:41.7]}
17. Qd2 {[%clk 0:02:40.8]} 17... Nd7 {[%clk 0:01:36.5]} 18. Ra4 {[%clk
0:02:25.5]} 18... N7c5 {[%clk 0:01:36.6]} 19. Rxc4 {[%clk 0:02:22.8]} 19... Ne5
{[%clk 0:01:32.2]} 20. Rb4 {[%clk 0:02:12.7]} 20... Qxa5 {[%clk 0:01:22.9]} 21.
Bxc5 {[%clk 0:02:02]} 21... Qxc5 {[%clk 0:01:16.2]} 22. Rxb7 {[%clk 0:02:01.2]}
22... Nc4 {[%clk 0:01:15.4]} 23. Qe2 {[%clk 0:01:56.7]} 23... Nxb2 {[%clk
0:01:12.3]} 24. Rxb2 {[%clk 0:01:46.3]} 24... Qxc3 {[%clk 0:01:08.3]} 25. Rb6
{[%clk 0:01:45.5]} 25... Bd4 {[%clk 0:00:57.9]} 26. Rxd6 {[%clk 0:01:35]} 26...
Qxg3 {[%clk 0:00:57.9]} 27. Rxa6 {[%clk 0:01:35]} 27... Qg5 {[%clk 0:00:46.2]}
28. Qg4 {[%clk 0:01:32]} 28... Qd2 {[%clk 0:00:43.1]} 29. Rc6 {[%clk 0:01:27]}
29... Ra8 {[%clk 0:00:39]} 30. Qd1 {[%clk 0:01:23.1]} 30... Qb2 {[%clk
0:00:33.4]} 31. Qc2 {[%clk 0:01:06]} 31... Qb7 {[%clk 0:00:29.1]} 32. d6 {[%clk
0:00:59.9]} 32... Rac8 {[%clk 0:00:25.1]} 33. Rxc8 {[%clk 0:00:54.3]} 33... Rxc8
{[%clk 0:00:25.2]} 34. Qd3 {[%clk 0:00:54.9]} 34... Bb6 {[%clk 0:00:22.3]} 35.
e5 {[%clk 0:00:52.9]} 35... Qd7 {[%clk 0:00:20.1]} 36. Rb1 {[%clk 0:00:48.2]}
36... Ba7 {[%clk 0:00:19.2]} 37. Rb7 {[%clk 0:00:47]} 37... Qa4 {[%clk 0:00:17]}
38. Bd5 {[%clk 0:00:35.7]} 38... Qa1+ {[%clk 0:00:17]} 39. Kg2 {[%clk
0:00:33.4]} 39... Qxe5 {[%clk 0:00:07.6]} 40. Rxf7 {[%clk 0:00:28.6]} 40... Qg5+
{[%clk 0:00:06]} 41. Kf3 {[%clk 0:00:19.6]} 41... Rf8 {[%clk 0:00:04.3]} 42.
Rf5+ {[%clk 0:00:12.2]} 42... Kh8 {[%clk 0:00:02.6]} 43. Qd4+ {[%clk 0:00:12.3]}
43... Bxd4 {[%clk 0:00:01.5]} 44. Rxf8+ {[%clk 0:00:11.3]} 1-0

[Event "*** SCC Grand Prix: Titled Tuesday Blitz"]
[Site "Chess.com"]
[Date "2020.07.21"]
[Round "2"]
[White "rugbyclub"]
[Black "ellatambien"]
[Result "1-0"]
[WhiteElo "2125"]
[BlackElo "2343"]
[TimeControl "180+1"]
[EndTime "10:18:08 PDT"]
[Termination "rugbyclub won on time"]

1. c4 {[%clk 0:02:59.8]} 1... Nf6 {[%clk 0:02:56.3]} 2. Nc3 {[%clk 0:03:00.1]}
2... e5 {[%clk 0:02:56.3]} 3. Nf3 {[%clk 0:02:58.7]} 3... Nc6 {[%clk 0:02:55.7]}
4. e3 {[%clk 0:02:58.8]} 4... Bb4 {[%clk 0:02:55.2]} 5. Qc2 {[%clk 0:02:59.1]}
5... Bxc3 {[%clk 0:02:54.6]} 6. Qxc3 {[%clk 0:02:58.7]} 6... Qe7 {[%clk
0:02:54.9]} 7. d4 {[%clk 0:02:58.8]} 7... Ne4 {[%clk 0:02:48.9]} 8. Qb3 {[%clk
0:02:41]} 8... exd4 {[%clk 0:02:46.6]} 9. Bd3 {[%clk 0:02:33.1]} 9... Nc5 {[%clk
0:02:44.2]} 10. Qa3 {[%clk 0:02:30.7]} 10... Nb4 {[%clk 0:02:32.1]} 11. Bb1
{[%clk 0:02:30.5]} 11... d3 {[%clk 0:02:16]} 12. Qxb4 {[%clk 0:02:22.7]} 12...
d2+ {[%clk 0:02:15.3]} 13. Qxd2 {[%clk 0:02:22.5]} 13... O-O {[%clk 0:02:13.7]}
14. O-O {[%clk 0:02:22.3]} 14... b6 {[%clk 0:02:13.6]} 15. Qc2 {[%clk
0:02:16.7]} 15... f5 {[%clk 0:02:11.1]} 16. b4 {[%clk 0:02:16.6]} 16... Ne4
{[%clk 0:02:10.4]} 17. Bb2 {[%clk 0:02:14.9]} 17... Bb7 {[%clk 0:02:10.2]} 18.
a3 {[%clk 0:02:09]} 18... Rae8 {[%clk 0:02:09.9]} 19. Re1 {[%clk 0:02:07.5]}
19... Qf7 {[%clk 0:02:02.5]} 20. Ne5 {[%clk 0:01:59.5]} 20... Qe6 {[%clk
0:02:00.8]} 21. Ba2 {[%clk 0:01:52.3]} 21... d6 {[%clk 0:01:29.6]} 22. c5 {[%clk
0:01:46.7]} 22... d5 {[%clk 0:01:29.5]} 23. Rad1 {[%clk 0:01:43.5]} 23... c6
{[%clk 0:01:24.6]} 24. Nf3 {[%clk 0:01:36.2]} 24... bxc5 {[%clk 0:01:22.9]} 25.
bxc5 {[%clk 0:01:35.4]} 25... Qh6 {[%clk 0:01:16.8]} 26. Ba1 {[%clk 0:01:11.2]}
26... Re6 {[%clk 0:01:07.2]} 27. Nd4 {[%clk 0:00:59.2]} 27... Rg6 {[%clk
0:01:05.6]} 28. g3 {[%clk 0:00:50.9]} 28... Bc8 {[%clk 0:00:59.5]} 29. Nf3
{[%clk 0:00:45.4]} 29... Qh5 {[%clk 0:00:56.5]} 30. Nh4 {[%clk 0:00:31.4]} 30...
Qxh4 {[%clk 0:00:53.3]} 31. Be5 {[%clk 0:00:27]} 31... Qh5 {[%clk 0:00:36.9]}
32. Bf4 {[%clk 0:00:24]} 32... Re6 {[%clk 0:00:32.6]} 33. Qb2 {[%clk 0:00:14.6]}
33... g5 {[%clk 0:00:31]} 34. Be5 {[%clk 0:00:14.9]} 34... f4 {[%clk 0:00:19.8]}
35. exf4 {[%clk 0:00:14.1]} 35... gxf4 {[%clk 0:00:19.6]} 36. Rxe4 {[%clk
0:00:14.2]} 36... Rfe8 {[%clk 0:00:16]} 37. Bh8 {[%clk 0:00:08]} 37... Qg6
{[%clk 0:00:10.1]} 38. Rxe6 {[%clk 0:00:07.4]} 38... Rxe6 {[%clk 0:00:10.2]} 39.
Bb1 {[%clk 0:00:07.1]} 39... Qf7 {[%clk 0:00:09]} 40. Bd3 {[%clk 0:00:04.2]}
40... f3 {[%clk 0:00:07.5]} 41. Bd4 {[%clk 0:00:01.2]} 41... Qe8 {[%clk
0:00:03.7]} 42. Qd2 {[%clk 0:00:01.7]} 42... Qe7 {[%clk 0:00:01.2]} 43. Qf4
{[%clk 0:00:01.2]} 43... Bd7 {[%clk 0:00:01.3]} 44. Qf5 {[%clk 0:00:01.4]} 1-0

[Event "*** SCC Grand Prix: Titled Tuesday Blitz"]
[Site "Chess.com"]
[Date "2020.07.21"]
[Round "2"]
[White "Rish_97"]
[Black "aa175"]
[Result "0-1"]
[WhiteElo "2701"]
[BlackElo "2493"]
[TimeControl "180+1"]
[EndTime "10:18:10 PDT"]
[Termination "aa175 won on time"]

1. e4 {[%clk 0:02:59.5]} 1... c5 {[%clk 0:02:57.9]} 2. Nf3 {[%clk 0:02:58.9]}
2... d6 {[%clk 0:02:57.2]} 3. d4 {[%clk 0:02:56]} 3... cxd4 {[%clk 0:02:58.1]}
4. Nxd4 {[%clk 0:02:56.5]} 4... Nf6 {[%clk 0:02:54.1]} 5. Nc3 {[%clk 0:02:56.3]}
5... a6 {[%clk 0:02:52.1]} 6. h3 {[%clk 0:02:46.6]} 6... e6 {[%clk 0:02:46.5]}
7. g4 {[%clk 0:02:45.1]} 7... Be7 {[%clk 0:02:46]} 8. g5 {[%clk 0:02:42.8]} 8...
Nfd7 {[%clk 0:02:46]} 9. Be3 {[%clk 0:02:41.1]} 9... b5 {[%clk 0:02:28.9]} 10.
a3 {[%clk 0:02:40.3]} 10... Bb7 {[%clk 0:02:28.7]} 11. h4 {[%clk 0:02:37.1]}
11... Qc7 {[%clk 0:02:27.8]} 12. h5 {[%clk 0:01:42]} 12... Nc6 {[%clk
0:02:14.1]} 13. Nxc6 {[%clk 0:01:41]} 13... Bxc6 {[%clk 0:02:15]} 14. Qd4 {[%clk
0:01:41.3]} 14... Ne5 {[%clk 0:02:08.6]} 15. O-O-O {[%clk 0:01:37.9]} 15... O-O
{[%clk 0:01:41.9]} 16. h6 {[%clk 0:01:30.9]} 16... Rfb8 {[%clk 0:01:21.5]} 17.
f4 {[%clk 0:01:24.4]} 17... a5 {[%clk 0:00:57.6]} 18. fxe5 {[%clk 0:00:42.3]}
18... dxe5 {[%clk 0:00:58.5]} 19. Qd3 {[%clk 0:00:30.6]} 19... b4 {[%clk
0:00:52.7]} 20. Nb1 {[%clk 0:00:28.5]} 20... bxa3 {[%clk 0:00:32.7]} 21. Nxa3
{[%clk 0:00:22.3]} 21... Qb7 {[%clk 0:00:25.1]} 22. Qb3 {[%clk 0:00:13.4]} 22...
Qxb3 {[%clk 0:00:04.1]} 23. cxb3 {[%clk 0:00:14.3]} 23... Bxe4 {[%clk
0:00:04.7]} 24. Rh2 {[%clk 0:00:14]} 24... Rxb3 {[%clk 0:00:03.1]} 25. Nc4
{[%clk 0:00:05]} 25... Rc8 {[%clk 0:00:03]} 26. Bg1 {[%clk 0:00:05.1]} 26...
Bxg5+ {[%clk 0:00:01.5]} 27. Rdd2 {[%clk 0:00:03.6]} 27... Bxd2+ {[%clk
0:00:02]} 28. Rxd2 {[%clk 0:00:03.9]} 28... Bd5 {[%clk 0:00:02]} 29. Rc2 {[%clk
0:00:03.4]} 29... Rb4 {[%clk 0:00:02]} 30. b3 {[%clk 0:00:03.1]} 30... Rxb3
{[%clk 0:00:02]} 31. Nxa5 {[%clk 0:00:03.6]} 31... Rxc2+ {[%clk 0:00:01.5]} 32.
Kxc2 {[%clk 0:00:04.3]} 32... Rg3 {[%clk 0:00:02.1]} 33. Bc5 {[%clk 0:00:03.9]}
33... Rf3 {[%clk 0:00:02.1]} 34. Be2 {[%clk 0:00:03.8]} 34... Rf4 {[%clk
0:00:02.6]} 35. Kd1 {[%clk 0:00:04.7]} 35... gxh6 {[%clk 0:00:03]} 36. Be7
{[%clk 0:00:04.6]} 36... Bf3 {[%clk 0:00:03.5]} 37. Bxf3 {[%clk 0:00:04.3]}
37... Rxf3 {[%clk 0:00:04.4]} 38. Nc4 {[%clk 0:00:05.2]} 38... e4 {[%clk
0:00:03.4]} 39. Ne5 {[%clk 0:00:05.3]} 39... Rb3 {[%clk 0:00:03.1]} 40. Ng4
{[%clk 0:00:05.1]} 40... f5 {[%clk 0:00:03.2]} 41. Nxh6+ {[%clk 0:00:04.2]}
41... Kg7 {[%clk 0:00:03.8]} 42. Bg5 {[%clk 0:00:03.6]} 42... Rd3+ {[%clk
0:00:04]} 43. Ke2 {[%clk 0:00:03.1]} 43... Kg6 {[%clk 0:00:04.9]} 44. Bf4 {[%clk
0:00:02.6]} 44... e5 {[%clk 0:00:05]} 0-1

[Event "*** SCC Grand Prix: Titled Tuesday Blitz"]
[Site "Chess.com"]
[Date "2020.07.21"]
[Round "2"]
[White "olksuna"]
[Black "Dauletova"]
[Result "1-0"]
[WhiteElo "2628"]
[BlackElo "2314"]
[TimeControl "180+1"]
[EndTime "10:18:10 PDT"]
[Termination "olksuna won on time"]

1. e4 {[%clk 0:03:00.9]} 1... e5 {[%clk 0:02:59.3]} 2. Nf3 {[%clk 0:03:01]} 2...
Nc6 {[%clk 0:02:59.4]} 3. Bc4 {[%clk 0:03:01.6]} 3... Bc5 {[%clk 0:02:58.8]} 4.
O-O {[%clk 0:03:01.1]} 4... Nf6 {[%clk 0:02:58.2]} 5. d3 {[%clk 0:03:01.5]} 5...
d6 {[%clk 0:02:54.3]} 6. c3 {[%clk 0:03:00.3]} 6... Bb6 {[%clk 0:02:50.9]} 7.
Nbd2 {[%clk 0:02:54.7]} 7... O-O {[%clk 0:02:50.4]} 8. Bb3 {[%clk 0:02:54.6]}
8... Re8 {[%clk 0:02:45.6]} 9. Nc4 {[%clk 0:02:53]} 9... Be6 {[%clk 0:02:43.5]}
10. Nxb6 {[%clk 0:02:52.1]} 10... axb6 {[%clk 0:02:44.4]} 11. Bc2 {[%clk
0:02:51.9]} 11... b5 {[%clk 0:02:43.7]} 12. Ng5 {[%clk 0:02:48.4]} 12... d5
{[%clk 0:02:05.5]} 13. Nxe6 {[%clk 0:02:38.6]} 13... fxe6 {[%clk 0:01:55.9]} 14.
Bg5 {[%clk 0:02:32.7]} 14... Rf8 {[%clk 0:01:28.5]} 15. Re1 {[%clk 0:02:28.7]}
15... Qd6 {[%clk 0:01:27.9]} 16. Qe2 {[%clk 0:02:12.2]} 16... Rf7 {[%clk
0:01:24.3]} 17. Bh4 {[%clk 0:02:07.7]} 17... Raf8 {[%clk 0:01:10.5]} 18. Bg3
{[%clk 0:02:07.6]} 18... d4 {[%clk 0:01:04.7]} 19. Bb3 {[%clk 0:01:55.1]} 19...
b4 {[%clk 0:01:02.8]} 20. cxb4 {[%clk 0:01:50.3]} 20... Nxb4 {[%clk 0:01:01.6]}
21. a3 {[%clk 0:01:50.3]} 21... Na6 {[%clk 0:01:00.8]} 22. Rac1 {[%clk
0:01:47.1]} 22... c5 {[%clk 0:00:55.7]} 23. Qc2 {[%clk 0:01:36.8]} 23... Nh5
{[%clk 0:00:41.6]} 24. Rf1 {[%clk 0:01:29.8]} 24... b6 {[%clk 0:00:38.8]} 25.
Ba2 {[%clk 0:01:21.4]} 25... Nb8 {[%clk 0:00:38.5]} 26. Qc4 {[%clk 0:01:15.4]}
26... Rf6 {[%clk 0:00:35.8]} 27. b4 {[%clk 0:01:11.5]} 27... Nd7 {[%clk
0:00:29.2]} 28. Rc2 {[%clk 0:01:08.4]} 28... Nf4 {[%clk 0:00:15.6]} 29. Re1
{[%clk 0:00:54.4]} 29... g5 {[%clk 0:00:14.9]} 30. Qb3 {[%clk 0:00:26.3]} 30...
h5 {[%clk 0:00:10.9]} 31. Qb1 {[%clk 0:00:26.4]} 31... h4 {[%clk 0:00:10.1]} 32.
Bxf4 {[%clk 0:00:26.6]} 32... exf4 {[%clk 0:00:07.7]} 33. bxc5 {[%clk
0:00:23.2]} 33... bxc5 {[%clk 0:00:06.7]} 34. Qd1 {[%clk 0:00:18.9]} 34... Ne5
{[%clk 0:00:04.2]} 35. Bc4 {[%clk 0:00:17]} 35... f3 {[%clk 0:00:02.4]} 36. g3
{[%clk 0:00:13.3]} 36... hxg3 {[%clk 0:00:02.6]} 37. hxg3 {[%clk 0:00:13]} 37...
Rh6 {[%clk 0:00:02.9]} 38. Qd2 {[%clk 0:00:06.2]} 38... Qe7 {[%clk 0:00:01.7]}
39. Bxe6+ {[%clk 0:00:02.8]} 39... Qxe6 {[%clk 0:00:01.5]} 40. Qxg5+ {[%clk
0:00:02.5]} 40... Rg6 {[%clk 0:00:02.2]} 41. Qh4 {[%clk 0:00:02.7]} 41... Kg7
{[%clk 0:00:01.6]} 42. Rxc5 {[%clk 0:00:02]} 42... Rh8 {[%clk 0:00:01.3]} 43.
Rc7+ {[%clk 0:00:02.9]} 43... Nf7 {[%clk 0:00:01.4]} 44. Qf4 {[%clk 0:00:03]}
1-0